bitfinex-derivatives/quotes_ETHF0:USTF0_20250427
["timestamp","ask_amount","ask_price","bid_price","bid_amount"]
[1745762413488,6.42684,1798.4,1798.3,40.8]
[1745762413689,5.3151,1798.4,1798.3,40.8]
[1745762413992,6.42684,1798.4,1798.3,40.8]
[1745762414890,1.11182,1798.3,1798.1,2.83588]
[1745762415094,2.03586,1798.2,1798.0,2.05575]
[1745762415292,2.76582,1798.1,1798.0,0.9438]
[1745762415491,5.97362,1798.1,1797.9,1.724]
[1745762415688,4.31972,1798.1,1798.0,40.8]
[1745762415888,4.41733472,1798.1,1798.0,40.8]
[1745762416089,8.13933472,1798.1,1798.0,40.8]
[1745762417888,8.13933923,1798.1,1798.0,40.8]
[1745762419496,8.1393392,1798.1,1798.0,40.8]
[1745762420993,8.04172,1798.1,1798.0,40.8]
[1745762421199,8.13934142,1798.1,1798.0,40.8]
[1745762422601,8.04172,1798.1,1798.0,40.8]
[1745762422795,8.13934128,1798.1,1798.0,40.8]
[1745762424094,8.13934331,1798.1,1798.0,40.8]
[1745762424496,1.11201,1798.0,1797.8,3.66197]
[1745762425002,1.11201,1798.0,1797.9,40.8]
[1745762425207,4.83401,1798.0,1797.9,40.8]
[1745762425402,4.93163465,1798.0,1797.9,40.8]
[1745762425703,3.8196247,1798.0,1797.9,41.91205]
[1745762425905,4.9316147,1798.0,1797.9,42.4989]
[1745762426105,3.8196247,1798.0,1797.9,43.61095]
[1745762426405,4.9316147,1798.0,1797.9,42.4989]
[1745762427396,4.93161339,1798.0,1797.9,40.8]
[1745762429008,4.93161567,1798.0,1797.9,40.8]
[1745762429206,3.81962567,1798.0,1797.9,41.91205]
[1745762429406,4.93161567,1798.0,1797.9,42.5019]
[1745762430506,4.93161396,1798.0,1797.9,42.5019]
[1745762432010,4.93161481,1798.0,1797.9,42.5019]
[1745762432713,4.93161481,1798.0,1797.9,40.8]
[1745762433009,1.11205,1797.9,1797.8,0.9415]
[1745762433210,1.11211,1797.8,1797.7,1.6014]
[1745762433413,4.1217,1797.9,1797.5,1.98956]
[1745762433606,3.2078,1797.7,1797.5,3.59096]
[1745762433811,4.31997,1797.7,1797.6,40.8]
[1745762434008,4.41761301,1797.7,1797.6,40.8]
[1745762434210,8.04197,1797.7,1797.6,40.8]
[1745762434409,6.9298,1797.7,1797.6,41.91223]
[1745762434610,8.04197,1797.7,1797.6,41.91223]
[1745762434800,3.722,1797.7,1797.6,43.58943]
[1745762435003,3.722,1797.7,1797.6,44.14513]
[1745762440823,0.5142,1797.7,1797.6,49.14513]
[1745762441117,3.2078,1798.1,1798.0,1.11199]
[1745762441718,4.31972,1798.1,1798.0,1.11199]
[1745762442217,8.04172,1798.1,1798.0,1.11199]
[1745762442416,6.9298,1798.1,1798.0,1.11199]
[1745762444224,8.04172,1798.1,1798.0,1.11199]
[1745762445124,6.9298,1798.1,1798.0,1.11199]
[1745762446523,3.722,1798.1,1798.0,1.11199]
[1745762446721,6.9298,1798.1,1798.0,1.11199]
[1745762447525,8.04172,1798.1,1798.0,1.11199]
[1745762448131,9.64172,1798.1,1798.0,1.11199]
[1745762448730,8.5298,1798.1,1798.0,1.11199]
[1745762449331,8.5298,1798.1,1798.0,41.91199]
[1745762449729,9.64172,1798.1,1798.0,41.91199]
[1745762450533,8.5298,1798.1,1798.0,41.91199]
[1745762450831,9.64172,1798.1,1798.0,41.91199]
[1745762451431,6.43392,1798.1,1798.0,41.91199]
[1745762451733,9.64172,1798.1,1798.0,41.91199]
[1745762452221,8.5298,1798.1,1798.0,41.91199]
[1745762454328,6.43392,1798.1,1798.0,41.91199]
[1745762454534,9.64172,1798.1,1798.0,40.8]
[1745762455436,9.73933974,1798.1,1798.0,40.8]
[1745762456033,9.73934414,1798.1,1798.0,40.8]
[1745762457233,9.73934414,1798.1,1798.0,41.91199]
[1745762457434,9.73934414,1798.1,1798.0,40.8]
[1745762460537,1.11205,1798.0,1797.8,1.11207]
[1745762460728,4.52575,1798.0,1797.8,1.11207]
[1745762460923,4.52575,1798.0,1797.9,1.11205]
[1745762460924,3.4137,1798.0,1797.9,1.11205]
[1745762461133,7.23332609,1798.0,1797.9,41.91205]
[1745762461437,8.34531609,1798.0,1797.9,40.8]
[1745762461635,8.24769,1798.0,1797.9,40.8]
[1745762461937,8.34531712,1798.0,1797.9,40.8]
[1745762462640,12.23332712,1798.0,1797.6,3.64302]
[1745762462837,4.31995,1797.8,1797.6,3.64302]
[1745762463040,2.5158,1797.7,1797.6,3.64302]
[1745762463740,3.722,1797.8,1797.7,1.11217]
[1745762463942,3.722,1797.8,1797.7,2.77117]
[1745762472744,5.3828,1797.8,1797.7,2.77117]
[1745762474251,6.49491,1797.8,1797.7,2.77117]
[1745762474451,6.49491,1797.8,1797.7,1.11217]
[1745762474651,7.37551,1797.8,1797.7,1.11217]
[1745762475349,6.2634,1797.8,1797.7,1.11217]
[1745762475849,6.2634,1797.8,1797.7,2.71257]
[1745762476144,5.3828,1797.8,1797.7,2.71257]
[1745762478247,3.722,1797.8,1797.7,2.71257]
[1745762489363,4.5441,1797.8,1797.7,2.71257]
[1745762489550,4.5441,1797.8,1797.7,1.11217]
[1745762489954,6.1857,1797.8,1797.7,1.11217]
[1745762505265,1.11225,1797.6,1797.3,1.6007]
[1745762505459,3.2078,1797.6,1797.4,1.11233]
[1745762505663,2.5985,1797.5,1797.4,1.11233]
[1745762505860,2.5985,1797.5,1797.4,41.91233]
[1745762506173,6.3205,1797.5,1797.4,41.91233]
[1745762506475,7.4328,1797.5,1797.4,40.8]
[1745762506660,1.11236,1797.4,1797.2,1.11243]
[1745762506967,3.2078,1797.3,1797.2,1.11243]
[1745762507167,3.2078,1797.3,1797.2,41.91243]
[1745762507371,4.9463,1797.3,1797.2,41.91243]
[1745762507672,3.722,1797.4,1797.3,1.11242]
[1745762507974,3.722,1797.4,1797.3,3.54942]
[1745762510173,5.3911,1797.4,1797.3,3.54942]
[1745762510373,5.3911,1797.4,1797.3,1.93702]
[1745762510874,5.3911,1797.4,1797.3,1.11242]
[1745762511965,5.3911,1797.4,1797.2,42.4271]
[1745762511966,5.3911,1797.4,1797.2,43.53955]
[1745762512164,1.5934,1797.3,1797.2,43.53955]
[1745762513271,5.3154,1797.3,1797.2,43.53955]
[1745762517979,3.722,1797.3,1797.2,43.53955]
[1745762525777,3.722,1797.3,1797.2,46.74735]
[1745762526176,3.2078,1797.5,1797.4,1.11236]
[1745762526578,0.8596,1797.8,1797.7,1.11217]
[1745762526878,3.2078,1798.1,1798.0,1.11193]
[1745762527068,5.78801924,1798.1,1798.0,1.11193]
[1745762527272,6.9298,1798.1,1798.0,1.11193]
[1745762527470,3.722,1798.1,1798.0,1.11193]
[1745762527874,3.722,1798.1,1798.0,3.65573]
[1745762532987,3.722,1798.1,1798.0,3.96913]
[1745762535798,3.722,1798.1,1798.0,44.76913]
[1745762536296,4.928,1798.3,1798.2,1.11186]
[1745762536897,5.7789,1798.5,1798.4,1.11174]
[1745762537194,3.2078,1798.7,1798.6,1.11162]
[1745762537493,3.2078,1798.7,1798.4,41.91174]
[1745762537494,2.5843,1798.8,1798.7,1.11155]
[1745762537693,3.2078,1799.2,1799.1,1.11131]
[1745762537996,1.7582,1799.3,1799.2,1.11124]
[1745762538190,4.6038,1799.3,1799.2,1.11124]
[1745762538390,4.6038,1799.3,1799.2,1.38884]
[1745762539095,4.6038,1799.3,1799.2,4.59664]
[1745762539496,4.6038,1799.3,1799.2,1.38884]
[1745762540292,4.6038,1799.3,1799.2,4.59664]
[1745762541299,4.6038,1799.3,1799.2,1.38884]
[1745762543992,6.251,1799.3,1799.2,1.38884]
[1745762547396,3.722,1799.3,1799.2,1.38884]
[1745762547796,3.722,1799.3,1799.2,4.59664]
[1745762547996,3.722,1799.3,1799.2,1.38884]
[1745762550107,3.722,1799.3,1799.2,4.59664]
[1745762550700,3.722,1799.3,1799.2,45.39664]
[1745762555612,3.722,1799.3,1799.2,42.18884]
[1745762558514,3.722,1799.3,1799.2,47.18884]
[1745762558715,3.722,1799.3,1799.2,42.18884]
[1745762564215,8.722,1799.3,1799.2,41.0776]
[1745762564412,8.722,1799.3,1799.2,42.18884]
[1745762564606,10.3131,1799.3,1799.2,42.18884]
[1745762565415,5.3131,1799.3,1799.2,42.18884]
[1745762567611,3.722,1799.3,1799.2,45.97384]
[1745762568511,3.722,1799.3,1799.2,54.18164]
[1745762568512,2.53525,1799.3,1799.2,54.18164]
[1745762568721,2.4412,1799.7,1799.6,1.111]
[1745762569019,1.11058,1800.3,1800.0,1.11071]
[1745762569208,0.92110253,1800.2,1800.0,1.11071]
[1745762569408,0.09750253,1800.1,1800.0,1.11071]
[1745762569609,1.71510253,1800.1,1800.0,1.11071]
[1745762569808,1.7151034,1800.1,1800.0,1.38801]
[1745762570016,1.6176,1800.1,1800.0,1.38801]
[1745762570219,5.3396,1800.1,1800.0,1.38801]
[1745762571215,5.3396,1800.1,1800.0,0.2773]
[1745762571421,6.45029,1800.1,1800.0,0.2773]
[1745762571719,6.54779599,1800.1,1800.0,0.2773]
[1745762572105,5.3396,1800.1,1800.0,1.38805]
[1745762573724,5.3396,1800.1,1800.0,4.59585]
[1745762575322,5.3396,1800.1,1800.0,1.38805]
[1745762575815,5.3396,1800.1,1800.0,0.2773]
[1745762576220,5.3396,1800.1,1800.0,1.38805]
[1745762576622,5.3396,1800.1,1800.0,0.2773]
[1745762576822,6.45029,1800.1,1800.0,0.2773]
[1745762577121,5.3396,1800.1,1800.0,0.2773]
[1745762577922,11.45029,1800.1,1800.0,0.2773]
[1745762578117,11.54779452,1800.1,1800.0,0.2773]
[1745762578510,1.11089,1799.8,1799.5,2.5791]
[1745762578716,3.2078,1799.7,1799.2,47.7918]
[1745762579018,0.90873379,1799.6,1799.2,45.11901]
[1745762579218,1.11113,1799.4,1799.2,45.11901]
[1745762579418,1.5888,1799.3,1799.2,45.11901]
[1745762580221,5.3108,1799.3,1799.2,45.11901]
[1745762580420,9.62978,1799.3,1799.2,40.8]
[1745762580822,8.5186,1799.3,1799.2,41.91124]
[1745762581526,8.5186,1799.3,1799.2,40.8]
[1745762581726,10.49258,1799.3,1799.2,40.8]
[1745762582027,9.3814,1799.3,1799.2,41.91124]
[1745762583327,10.49258,1799.3,1799.2,40.8]
[1745762583519,9.3814,1799.3,1799.2,41.91124]
[1745762584020,9.3814,1799.3,1799.2,40.8]
[1745762584220,6.1736,1799.3,1799.2,41.91124]
[1745762584428,6.1736,1799.3,1799.2,40.8]
[1745762584620,7.28478,1799.3,1799.2,40.8]
[1745762584818,6.1736,1799.3,1799.2,41.91124]
[1745762585031,7.28478,1799.3,1799.2,40.8]
[1745762585220,6.1736,1799.3,1799.2,40.8]
[1745762585829,7.28478,1799.3,1799.2,40.8]
[1745762586127,6.1736,1799.3,1799.2,40.8]
[1745762586929,10.59013007,1799.3,1799.2,40.8]
[1745762587821,14.47895332,1799.3,1798.9,3.2078]
[1745762588017,0.8382,1799.2,1799.1,1.11131]
[1745762588227,6.2772,1799.2,1799.0,2.71852]
[1745762588423,3.722,1799.2,1799.1,1.11131]
[1745762588618,3.722,1799.2,1799.1,1.98131]
[1745762588821,5.763,1799.5,1799.4,1.11112]
[1745762589025,6.6583,1799.5,1799.4,1.11112]
[1745762589228,10.3803,1799.5,1799.4,1.11112]
[1745762590438,11.49136,1799.5,1799.3,1.11114]
[1745762590730,11.49138,1799.5,1799.3,1.11114]
[1745762590932,1.11118,1799.3,1799.1,46.26686]
[1745762591134,2.531,1799.2,1799.1,41.0778]
[1745762591337,3.64224,1799.2,1799.1,40.8]
[1745762591631,3.64224,1799.2,1799.1,41.91131]
[1745762591832,2.531,1799.2,1799.1,41.91131]
[1745762592036,3.64224,1799.2,1799.1,40.8]
[1745762592237,7.36424,1799.2,1799.1,40.8]
[1745762592426,6.253,1799.2,1799.1,41.91131]
[1745762593531,7.36424,1799.2,1799.1,40.8]
[1745762595340,6.253,1799.2,1799.1,41.91131]
[1745762595733,3.722,1799.2,1799.1,41.91131]
[1745762595932,5.324,1799.2,1799.1,41.91131]
[1745762596741,6.43524,1799.2,1799.1,40.8]
[1745762596936,5.324,1799.2,1799.1,41.91131]
[1745762598540,3.722,1799.2,1799.1,42.78681]
[1745762599438,3.2078,1799.5,1799.4,1.11112]
[1745762600441,8.5197,1799.5,1799.4,1.11112]
[1745762601936,5.3119,1799.5,1799.4,1.11112]
[1745762602140,3.722,1799.5,1799.4,1.11112]
[1745762602842,3.722,1799.5,1799.4,2.84512]
[1745762605032,3.722,1799.5,1799.4,1.734]
[1745762605530,5.4507,1799.5,1799.4,2.84512]
[1745762606240,3.722,1799.5,1799.4,2.84512]
[1745762608942,3.722,1799.5,1799.4,1.11112]
[1745762613544,5.3459,1799.5,1799.4,1.11112]
[1745762613848,5.3459,1799.5,1799.1,41.6755]
[1745762614050,4.35284,1799.4,1799.2,1.1112]
[1745762614249,1.6239,1799.3,1799.2,1.1112]
[1745762615248,5.3459,1799.3,1799.2,1.1112]
[1745762619950,5.3459,1799.3,1799.1,43.6142]
[1745762620154,4.8332,1799.3,1799.1,42.18918]
[1745762620347,8.041,1799.3,1799.1,42.18918]
[1745762620852,1.11124,1799.2,1799.1,41.0779]
[1745762621052,1.11156,1798.7,1798.5,1.11165]
[1745762621243,3.722,1798.7,1798.3,5.7946]
[1745762621557,5.12515,1798.6,1798.4,42.5388]
[1745762621747,5.96595,1798.6,1798.4,40.8]
[1745762621943,10.7663,1798.6,1797.9,11.06007464]
[1745762622145,3.2078,1798.2,1798.0,1.7388]
[1745762622349,0.8057,1798.1,1797.9,7.41835139]
[1745762622650,0.8057,1798.1,1798.0,40.8]
[1745762622860,1.91762,1798.1,1798.0,40.8]
[1745762623153,5.63962,1798.1,1798.0,40.8]
[1745762624357,4.5277,1798.1,1798.0,41.91199]
[1745762624755,4.5277,1798.1,1798.0,42.4127]
[1745762625153,5.63962,1798.1,1798.0,42.4127]
[1745762625960,4.5277,1798.1,1798.0,42.4127]
[1745762626160,4.5277,1798.1,1798.0,40.8]
[1745762626464,5.315,1798.1,1798.0,40.8]
[1745762626650,3.722,1798.1,1798.0,41.91199]
[1745762626852,0.50210001,1798.1,1798.0,50.69199]
[1745762627052,0.50210001,1798.1,1798.0,53.71369]
[1745762627350,1.96961,1798.5,1798.2,1.11181]
[1745762627551,1.96961,1798.5,1798.3,1.6706]
[1745762627756,0.8579,1798.5,1798.3,1.6706]
[1745762627960,0.8579,1798.5,1798.1,3.2078]
[1745762628157,5.69163,1798.5,1798.2,1.11183]
[1745762628359,5.69163,1798.5,1798.3,1.1118]
[1745762628662,1.11175,1798.4,1798.2,1.6706]
[1745762628858,1.11175,1798.4,1798.2,2.78246]
[1745762629058,5.69162,1798.5,1798.2,2.78246]
[1745762629256,3.722,1798.4,1798.3,1.1118]
[1745762630661,3.722,1798.4,1798.2,2.78242]
[1745762631163,3.722,1798.4,1798.3,1.6348]
[1745762631963,4.83374,1798.4,1798.3,1.6348]
[1745762632364,3.722,1798.4,1798.3,1.6348]
[1745762632663,3.722,1798.4,1798.3,2.7466]
[1745762633564,3.722,1798.4,1798.3,1.6348]
[1745762634458,4.83374,1798.4,1798.3,1.6348]
[1745762635766,5.4109,1798.4,1798.1,3.2078]
[1745762635968,2.80072,1798.3,1798.1,4.31971]
[1745762636168,1.6889,1798.2,1798.1,5.95111]
[1745762636465,1.6889,1798.2,1798.1,5.95112]
[1745762636664,3.64686,1798.2,1798.1,4.8392]
[1745762636862,3.64686,1798.2,1798.0,42.71016]
[1745762637060,1.6889,1798.1,1798.0,41.91196]
[1745762637260,2.80082,1798.1,1798.0,40.8]
[1745762637461,1.6889,1798.1,1798.0,41.91199]
[1745762637659,1.6889,1798.1,1798.0,43.54339]
[1745762638163,1.696,1798.2,1798.1,1.11192]
[1745762638366,0.8461,1798.2,1798.1,2.74332]
[1745762638966,3.61926,1798.2,1798.0,41.91196]
[1745762639165,7.34126,1798.2,1798.0,41.91196]
[1745762639464,1.6613,1798.1,1798.0,43.56726]
[1745762639662,2.77322,1798.1,1798.0,42.4553]
[1745762640265,6.49522,1798.1,1798.0,42.4553]
[1745762640664,6.49522,1798.1,1798.0,43.56729]
[1745762640873,6.49522,1798.1,1798.0,40.8]
[1745762641168,7.32382,1798.1,1798.0,40.8]
[1745762641555,6.2119,1798.1,1798.0,41.91199]
[1745762641754,7.32382,1798.1,1798.0,40.8]
[1745762642663,1.11205,1797.9,1797.8,0.2779]
[1745762642863,11.2119,1798.1,1797.6,1.11222]
[1745762642864,1.11216,1797.8,1797.6,1.11222]
[1745762643057,2.4807,1797.7,1797.6,1.11222]
[1745762643761,2.4807,1797.7,1797.6,42.3934]
[1745762643963,3.59287,1797.7,1797.6,40.8]
[1745762644268,8.09937,1797.7,1797.6,40.8]
[1745762644970,13.09937,1797.7,1797.6,40.8]
[1745762645963,8.09937,1797.7,1797.6,40.8]
[1745762650069,6.9872,1797.7,1797.6,40.8]
[1745762650274,8.09937,1797.7,1797.6,40.8]
[1745762650472,8.09937,1797.7,1797.6,42.487]
[1745762653379,8.09937,1797.7,1797.6,40.8]
[1745762655977,8.1970101,1797.7,1797.6,40.8]
[1745762656181,8.09937,1797.7,1797.6,40.8]
[1745762657081,1.1123,1797.5,1797.4,1.9182]
[1745762657578,1.1123,1797.5,1797.4,42.7182]
[1745762657786,1.1123,1797.5,1797.4,43.83056]
[1745762657975,2.84017,1797.6,1797.4,43.83056]
[1745762658174,6.56217,1797.6,1797.4,43.83056]
[1745762658980,1.1123,1797.5,1797.4,43.83056]
[1745762659468,1.1123,1797.5,1797.4,42.7182]
[1745762659674,1.1123,1797.5,1797.4,41.0781]
[1745762659881,2.7924,1797.5,1797.4,41.0781]
[1745762660174,9.7222,1797.5,1797.4,0.2781]
[1745762660375,9.81985253,1797.5,1797.4,0.2781]
[1745762660576,1.11254,1797.2,1797.0,3.546]
[1745762660775,1.96034,1797.1,1797.0,2.4334]
[1745762661076,2.5279,1797.1,1796.7,3.7612]
[1745762661380,1.11267,1796.9,1796.8,40.8]
[1745762661573,1.11267,1796.9,1796.8,41.0782]
[1745762662070,2.79277,1796.9,1796.8,41.0782]
[1745762662277,1.6801,1796.9,1796.8,41.0782]
[1745762662577,1.6801,1796.9,1796.8,42.19093]
[1745762662778,1.6801,1796.9,1796.8,43.76803]
[1745762664780,0.8478,1797.1,1796.9,1.11263]
[1745762664982,0.8478,1797.1,1797.0,1.1126]
[1745762665177,0.8478,1797.1,1797.0,1.9832]
[1745762665577,1.96034,1797.1,1797.0,0.8706]
[1745762665783,3.60274,1797.1,1797.0,0.8706]
[1745762665984,3.60274,1797.1,1797.0,2.498]
[1745762668280,0.8478,1797.1,1797.0,2.498]
[1745762668676,1.96034,1797.1,1797.0,2.498]
[1745762669588,3.59154,1797.1,1797.0,2.498]
[1745762670886,1.11267,1796.9,1796.8,41.0782]
[1745762671188,1.11267,1796.9,1796.8,42.7923]
[1745762672281,1.11267,1796.9,1796.8,41.0782]
[1745762673487,2.74747,1796.9,1796.8,41.0782]
[1745762674785,4.32044,1797.0,1796.8,41.0782]
[1745762674990,4.32044,1797.0,1796.9,1.6271]
[1745762675990,6.03914,1797.0,1796.9,1.6271]
[1745762676193,4.9265,1797.0,1796.9,1.6271]
[1745762676383,3.2078,1797.0,1796.9,2.73977]
[1745762676584,4.3204,1797.0,1796.9,1.6271]
[1745762676981,3.2078,1797.0,1796.9,1.6271]
[1745762677181,1.1126,1797.0,1796.9,2.73977]
[1745762677492,1.1126,1797.0,1796.9,1.6271]
[1745762678502,1.96039,1797.1,1796.9,2.73974]
[1745762679089,1.96039,1797.1,1797.0,1.7093]
[1745762681103,1.11259,1797.1,1797.0,1.7093]
[1745762681302,1.11259,1797.1,1797.0,2.2625]
[1745762681502,1.11259,1797.1,1797.0,1.7093]
[1745762682909,1.11259,1797.1,1797.0,1.9875]
[1745762683609,2.81949,1797.1,1797.0,1.9875]
[1745762686112,6.02729,1797.1,1797.0,1.9875]
[1745762688508,4.32039,1797.1,1797.0,1.9875]
[1745762688716,5.94709,1797.1,1797.0,1.9875]
[1745762689017,5.94709,1797.1,1797.0,0.2782]
[1745762690311,6.04476653,1797.1,1797.0,0.2782]
[1745762690511,5.94709,1797.1,1797.0,0.2782]
[1745762693513,6.04476666,1797.1,1797.0,0.2782]
[1745762694015,11.04476666,1797.1,1797.0,0.2782]
[1745762694318,14.76676666,1797.1,1797.0,0.2782]
[1745762694618,15.2165387,1797.1,1797.0,0.2782]
[1745762695008,10.2165387,1797.1,1797.0,0.2782]
[1745762695315,9.76676666,1797.1,1797.0,0.2782]
[1745762696114,6.04476666,1797.1,1797.0,0.2782]
[1745762696817,5.94709,1797.1,1797.0,0.2782]
[1745762697018,6.04477204,1797.1,1797.0,0.2782]
[1745762699716,4.32034,1797.1,1797.0,0.2782]
[1745762699916,4.32034,1797.1,1797.0,1.9535]
[1745762701121,4.32034,1797.1,1797.0,0.2782]
[1745762701320,6.15451773,1797.1,1797.0,0.2782]
[1745762703112,9.87651773,1797.1,1797.0,0.2782]
[1745762704022,9.8765152,1797.1,1797.0,0.2782]
[1745762704221,6.1545152,1797.1,1797.0,0.2782]
[1745762706023,6.1545152,1797.1,1797.0,1.1238]
[1745762706324,6.05684,1797.1,1797.0,1.1238]
[1745762708120,6.05684,1797.1,1797.0,0.2782]
[1745762708320,6.15451367,1797.1,1797.0,0.2782]
[1745762709026,1.11267,1796.9,1796.8,0.8199]
[1745762709328,1.11273,1796.8,1796.7,42.4052]
[1745762709526,1.96773,1796.8,1796.7,42.4052]
[1745762710224,3.64093,1796.8,1796.7,42.6834]
[1745762710620,1.11273,1796.8,1796.7,42.6834]
[1745762711428,1.11273,1796.8,1796.7,0.2782]
[1745762711628,2.78593,1796.8,1796.7,0.2782]
[1745762711930,2.78593,1796.8,1796.7,41.0782]
[1745762712828,2.88362256,1796.8,1796.7,41.0782]
[1745762713419,2.88362542,1796.8,1796.7,41.0782]
[1745762715029,2.88362593,1796.8,1796.7,41.0782]
[1745762715930,2.8836255,1796.8,1796.7,0.2782]
[1745762716131,6.6056255,1796.8,1796.7,0.2782]
[1745762716328,6.6056255,1796.8,1796.4,0.8515]
[1745762716329,1.11291,1796.5,1796.4,0.8515]
[1745762716631,4.32071,1796.5,1796.4,40.8]
[1745762717231,6.03211,1796.5,1796.4,40.8]
[1745762718531,4.32071,1796.5,1796.4,40.8]
[1745762719126,4.32071,1796.5,1796.4,42.5286]
[1745762722736,5.99541,1796.5,1796.4,40.8]
[1745762722932,6.09312073,1796.5,1796.4,40.8]
[1745762723827,4.0167,1796.7,1796.4,40.8]
[1745762724138,1.11291,1796.5,1796.4,41.3532]
[1745762724440,1.11291,1796.5,1796.4,40.8]
[1745762725032,2.69991,1796.5,1796.4,40.8]
[1745762725540,1.11291,1796.5,1796.4,40.8]
[1745762726145,1.11291,1796.5,1796.4,44.522]
[1745762726437,1.1129,1796.6,1796.4,44.522]
[1745762726644,1.1129,1796.6,1796.5,0.5528]
[1745762726845,3.2078,1797.0,1796.5,0.5528]
[1745762727042,2.78132,1797.2,1796.7,1.11278]
[1745762727043,1.11267,1796.9,1796.7,1.11278]
[1745762727238,1.11265,1797.0,1796.8,0.5528]
[1745762727439,1.11267,1796.9,1796.8,0.5528]
[1745762728343,1.11267,1796.9,1796.8,4.2748]
[1745762730846,1.11267,1796.9,1796.8,3.722]
[1745762731846,1.95243,1797.0,1796.8,3.722]
[1745762732445,1.11267,1796.9,1796.8,3.722]
[1745762732944,1.95244,1797.0,1796.8,3.722]
[1745762733854,1.11264,1797.0,1796.8,4.83469]
[1745762734146,1.11261,1797.0,1796.8,3.722]
[1745762734350,1.11267,1796.9,1796.8,3.722]
[1745762735141,2.4723,1796.9,1796.8,1.11273]
[1745762735343,1.11265,1797.0,1796.8,1.11273]
[1745762735644,1.11265,1797.0,1796.9,1.11267]
[1745762736352,1.11265,1797.0,1796.8,1.11268]
[1745762736560,1.11265,1797.0,1796.9,1.6982]
[1745762736752,3.57787,1797.1,1796.9,2.81084]
[1745762737249,3.57787,1797.1,1797.0,1.6982]
[1745762738753,1.11263,1797.0,1796.8,1.95658]
[1745762739051,1.11267,1796.9,1796.8,0.8439]
[1745762739256,2.84035,1797.0,1796.8,2.4741]
[1745762739459,2.84035,1797.0,1796.8,3.58682]
[1745762740760,1.7277,1797.0,1796.8,2.4741]
[1745762741056,1.6675,1796.9,1796.8,3.58683]
[1745762741754,2.78017,1796.9,1796.8,2.4741]
[1745762741955,2.78017,1796.9,1796.6,3.2078]
[1745762741956,1.11279,1796.7,1796.6,3.2078]
[1745762742158,1.11279,1796.7,1796.6,5.93085]
[1745762742859,3.53508,1796.8,1796.6,5.93085]
[1745762743060,3.53508,1796.8,1796.7,1.6102]
[1745762744265,1.11278,1796.8,1796.7,2.72299]
[1745762744764,1.11278,1796.8,1796.7,1.6102]
[1745762746266,2.85228,1796.8,1796.7,1.6102]
[1745762746564,1.11279,1796.7,1796.6,4.32065]
[1745762746863,1.7395,1796.7,1796.6,6.05565]
[1745762747760,2.85229,1796.7,1796.6,6.05565]
[1745762748060,1.7395,1796.7,1796.6,6.05565]
[1745762749164,4.0217,1797.0,1796.6,4.9428]
[1745762749467,4.32004,1797.6,1796.9,2.78167]
[1745762749657,1.6839,1797.5,1797.4,1.11232]
[1745762750053,1.6839,1797.5,1797.4,4.83432]
[1745762750258,1.6839,1797.7,1797.4,7.7978]
[1745762750456,1.6839,1797.7,1797.6,1.11223]
[1745762750657,2.79613,1797.7,1797.5,42.4705]
[1745762750860,1.11223,1797.6,1797.5,40.8]
[1745762751067,3.58033,1797.6,1797.5,40.8]
[1745762751259,2.4681,1797.6,1797.5,40.8]
[1745762751757,2.4681,1797.6,1797.5,42.5006]
[1745762751968,3.58033,1797.6,1797.5,42.5006]
[1745762752171,6.1901,1797.6,1797.5,42.5006]
[1745762752869,7.30233,1797.6,1797.5,42.5006]
[1745762753061,6.1901,1797.6,1797.5,42.5006]
[1745762753369,7.30233,1797.6,1797.5,42.5006]
[1745762753570,7.30233,1797.6,1797.5,40.8]
[1745762753868,6.1901,1797.6,1797.5,40.8]
[1745762754867,6.1901,1797.6,1797.5,41.9123]
[1745762755567,6.1901,1797.6,1797.5,40.8]
[1745762755767,6.1901,1797.6,1797.5,41.9123]
[1745762756771,6.1901,1797.6,1797.5,40.8]
[1745762757877,6.1901,1797.6,1797.5,41.9123]
[1745762758978,6.1901,1797.6,1797.5,40.8]
[1745762759274,7.0125,1797.6,1797.5,40.8]
[1745762762080,8.12473,1797.6,1797.5,40.8]
[1745762763170,7.0125,1797.6,1797.5,40.8]
[1745762763371,3.722,1797.6,1797.5,41.9123]
[1745762763577,3.722,1797.6,1797.5,44.4791]
[1745762763882,3.722,1797.6,1797.5,49.4791]
[1745762764076,3.70581,1798.0,1797.7,1.11216]
[1745762764267,3.70581,1798.0,1797.8,1.7149]
[1745762764474,3.70581,1798.0,1797.8,2.82699]
[1745762764668,3.70581,1798.0,1797.8,1.7149]
[1745762764871,3.70581,1798.0,1797.8,2.82701]
[1745762765280,7.42781,1798.0,1797.9,1.7149]
[1745762765479,3.722,1798.0,1797.9,2.82695]
[1745762766276,6.56369,1798.0,1797.9,1.7149]
[1745762767783,5.4517,1798.0,1797.9,1.7149]
[1745762767981,5.4517,1798.0,1797.9,2.82695]
[1745762773389,3.77,1798.4,1797.9,2.82695]
[1745762773390,9.1198,1798.5,1798.4,1.11174]
[1745762773687,2.4138,1798.6,1798.5,1.11168]
[1745762774093,6.1358,1798.6,1798.5,1.11168]
[1745762776289,4.5478,1798.6,1798.5,1.11168]
[1745762776587,3.722,1798.6,1798.5,2.80138]